fUST/lending_fUST_20240824
["ID","MTS","AMOUNT","RATE_DAILY","PERIOD"]
[335721233,1724463044949,-967.34,0.00013698,2]
[335721234,1724463044959,-500.0,0.00013698,2]
[335721235,1724463044969,-1593.51,0.00013698,2]
[335721236,1724463044979,-501.05200541,0.00013698,2]
[335721237,1724463044988,-500.0,0.00013698,2]
[335721238,1724463044998,-500.0,0.00013698,2]
[335721239,1724463045007,-858.53,0.00013698,2]
[335721240,1724463045019,-560.98,0.00013698,2]
[335721241,1724463045029,-500.0,0.00013698,2]
[335721242,1724463045040,-500.0,0.00013698,2]
[335721243,1724463045050,-500.0,0.00013698,2]
[335721244,1724463045060,-3238.64,0.00013698,2]
[335721245,1724463045072,-1994.35,0.00013698,2]
[335721246,1724463045082,-409.99527106,0.00013698,2]
[335721247,1724463045091,-862.15,0.00013698,2]
[335721248,1724463045101,-500.0,0.00013698,2]
[335721249,1724463045112,-500.0,0.00013698,2]
[335721250,1724463045121,-883.46,0.00013698,2]
[335721251,1724463045292,-500.0,0.00013698,2]
[335721252,1724463045302,-500.0,0.00013698,2]
[335721253,1724463045313,-500.0,0.00013698,2]
[335721254,1724463045325,-523.72,0.00013698,2]
[335721255,1724463045335,-500.0,0.00013698,2]
[335721256,1724463045346,-500.0,0.00013698,2]
[335721257,1724463045355,-572.54,0.00013698,2]
[335721258,1724463045364,-1397.57,0.00013698,2]
[335721259,1724463045374,-500.0,0.00013698,2]
[335721260,1724463045383,-500.0,0.00013698,2]
[335721261,1724463045392,-1499.86,0.00013698,2]
[335721262,1724463045403,-613.53,0.00013698,2]
[335721263,1724463045413,-314.47371045,0.00013698,2]
[335721264,1724463045422,-728.25,0.00013698,2]
[335721265,1724463045432,-524.23,0.00013698,2]
[335721266,1724463045444,-22559.96,0.00013698,2]
[335721267,1724463045455,-2195.43,0.00013698,2]
[335721268,1724463045465,-500.0,0.00013698,2]
[335721269,1724463045475,-500.0,0.00013698,2]
[335721270,1724463045484,-1128.2,0.00013698,2]
[335721271,1724463045494,-500.0,0.00013698,2]
[335721272,1724463045504,-1182.89,0.00013698,2]
[335721273,1724463045514,-757.93,0.00013698,2]
[335721274,1724463045524,-757.93,0.00013698,2]
[335721275,1724463045533,-757.93,0.00013698,2]
[335721276,1724463045543,-757.93,0.00013698,2]
[335721277,1724463045553,-757.93,0.00013698,2]
[335721278,1724463045563,-500.0,0.00013698,2]
[335721279,1724463045574,-297.29687507,0.00013698,2]
[335721280,1724463045584,-757.93,0.00013698,2]
[335721281,1724463045594,-757.93,0.00013698,2]
[335721282,1724463045603,-757.93,0.00013698,2]
[335721283,1724463045614,-757.93,0.00013698,2]
[335721284,1724463045623,-500.0,0.00013698,2]
[335721285,1724463045632,-757.93,0.00013698,2]
[335721286,1724463045642,-757.93,0.00013698,2]
[335721287,1724463045653,-757.93,0.00013698,2]
[335721288,1724463045664,-757.93,0.00013698,2]
[335721289,1724463045673,-757.93,0.00013698,2]
[335721290,1724463045683,-500.0,0.00013698,2]
[335721291,1724463045692,-757.93,0.00013698,2]
[335721292,1724463045702,-675.49,0.00013698,2]
[335721293,1724463045712,-757.93,0.00013698,2]
[335721294,1724463045721,-757.93,0.00013698,2]
[335721295,1724463045731,-1157.06,0.00013698,2]
[335721296,1724463045740,-864.14,0.00013698,2]
[335721297,1724463045750,-757.93,0.00013698,2]
[335721298,1724463045759,-500.0,0.00013698,2]
[335721300,1724463045769,-500.0,0.00013698,2]
[335721301,1724463045778,-757.93,0.00013698,2]
[335721302,1724463045787,-757.93,0.00013698,2]
[335721303,1724463045796,-757.93,0.00013698,2]
[335721304,1724463045806,-757.93,0.00013698,2]
[335721305,1724463045818,-757.93,0.00013698,2]
[335721306,1724463045827,-500.0,0.00013698,2]
[335721307,1724463045837,-500.0,0.00013698,2]
[335721308,1724463045848,-758.09,0.00013698,2]
[335721309,1724463045860,-2077.12,0.00013698,2]
[335721310,1724463045869,-464.04485381,0.00013698,2]
[335721311,1724463045878,-19748.42,0.00013698,2]
[335721312,1724463045888,-3849.66,0.00013698,2]
[335721313,1724463045897,-5152.79,0.00013698,2]
[335721315,1724463045906,-500.0,0.00013698,2]
[335721318,1724463045915,-502.40384647,0.00013698,2]
[335721320,1724463045924,-500.0,0.00013698,2]
[335721322,1724463045934,-519.57,0.00013698,2]
[335721324,1724463045943,-690.32,0.00013698,2]
[335721326,1724463045954,-500.0,0.00013698,2]
[335721328,1724463045964,-2631.85,0.00013698,2]
[335721330,1724463045975,-500.0,0.00013698,2]
[335721332,1724463045984,-1254.55,0.00013698,2]
[335721334,1724463045994,-5541.33,0.00013698,2]
[335721336,1724463046003,-2796.56,0.00013698,2]
[335721338,1724463046012,-500.0,0.00013698,2]
[335721340,1724463046022,-500.0,0.00013698,2]
[335721342,1724463046031,-518.2226124,0.00013698,2]
[335721344,1724463046041,-3963.96,0.00013698,2]
[335721347,1724463046051,-500.0,0.00013698,2]
[335721349,1724463046062,-500.0,0.00013698,2]
[335721351,1724463046073,-582.42926131,0.00013698,2]
[335721353,1724463046082,-823.21,0.00013698,2]
[335721355,1724463046091,-1058.29,0.00013698,2]
[335721357,1724463046101,-500.0,0.00013698,2]
[335721359,1724463046110,-1977.37,0.00013698,2]
[335721361,1724463046119,-563.5930556,0.00013698,2]
[335721363,1724463046128,-509.34574247,0.00013698,2]
[335721365,1724463046138,-1323.75,0.00013698,2]
[335721367,1724463046149,-500.0,0.00013698,2]
[335721369,1724463046161,-500.0,0.00013698,2]
[335721371,1724463046172,-500.0,0.00013698,2]
[335721373,1724463046183,-500.0,0.00013698,2]
[335721375,1724463046192,-857.04,0.00013698,2]
[335721377,1724463046203,-1174.78,0.00013698,2]
[335721379,1724463046213,-501.16474508,0.00013698,2]
[335721381,1724463046222,-500.0,0.00013698,2]
[335721383,1724463046232,-9771.89,0.00013698,2]
[335721385,1724463046244,-500.0,0.00013698,2]
[335721387,1724463046253,-500.0,0.00013698,2]
[335721389,1724463046263,-10561.9,0.00013698,2]
[335721391,1724463046272,-500.0,0.00013698,2]
[335721393,1724463046282,-3142.11,0.00013698,2]
[335721395,1724463046292,-2367.26,0.00013698,2]
[335721398,1724463046301,-500.0,0.00013698,2]
[335721400,1724463046311,-521.28,0.00013698,2]
[335721402,1724463046323,-591.51,0.00013698,2]
[335721404,1724463046332,-500.0,0.00013698,2]
[335721406,1724463046342,-500.0,0.00013698,2]
[335721408,1724463046351,-500.0,0.00013698,2]
[335721410,1724463046360,-500.0,0.00013698,2]
[335721412,1724463046369,-762.45,0.00013698,2]
[335721414,1724463046379,-500.0,0.00013698,2]
[335721416,1724463046388,-772.25,0.00013698,2]
[335721418,1724463046398,-500.0,0.00013698,2]
[335721420,1724463046407,-1618.12,0.00013698,2]
[335721422,1724463046417,-500.0,0.00013698,2]
[335721424,1724463046427,-1418.2,0.00013698,2]
[335721426,1724463046436,-500.0,0.00013698,2]
[335721428,1724463046446,-1518.4,0.00013698,2]
[335721430,1724463046457,-500.0,0.00013698,2]
[335721432,1724463046468,-500.0,0.00013698,2]
[335721434,1724463046478,-500.0,0.00013698,2]
[335721436,1724463046488,-604.42,0.00013698,2]
[335721438,1724463046499,-500.0,0.00013698,2]
[335721440,1724463046509,-500.0,0.00013698,2]
[335721442,1724463046518,-1553.76,0.00013698,2]
[335721443,1724463046527,-810.73,0.00013698,2]
[335721444,1724463046536,-1237.88,0.00013698,2]
[335721446,1724463046545,-500.24498535,0.00013698,2]
[335721448,1724463046554,-1006.3,0.00013698,2]
[335721450,1724463046564,-2252.53,0.00013698,2]
[335721452,1724463046573,-500.0,0.00013698,2]
[335721454,1724463046584,-670.63,0.00013698,2]
[335721456,1724463046593,-638.99,0.00013698,2]
[335721458,1724463046602,-1715.98,0.00013698,2]
[335721460,1724463046612,-554.58,0.00013698,2]
[335721462,1724463046621,-500.0,0.00013698,2]
[335721464,1724463046631,-500.0,0.00013698,2]
[335721466,1724463046640,-500.0,0.00013698,2]
[335721468,1724463046649,-679.43,0.00013698,2]
[335721470,1724463046658,-500.0,0.00013698,2]
[335721472,1724463046668,-1566.39,0.00013698,2]
[335721474,1724463046678,-12386.98,0.00013698,2]
[335721476,1724463046687,-500.0,0.00013698,2]
[335721478,1724463046696,-1293.72,0.00013698,2]
[335721480,1724463046705,-945.47,0.00013698,2]
[335721482,1724463046714,-1468.89,0.00013698,2]
[335721483,1724463046723,-500.0,0.00013698,2]
[335721485,1724463046732,-809.89,0.00013698,2]
[335721487,1724463046741,-372.4301339,0.00013698,2]
[335721489,1724463046751,-1148.76,0.00013698,2]
[335721491,1724463046761,-500.0,0.00013698,2]
[335721493,1724463046770,-1448.47,0.00013698,2]
[335721495,1724463046780,-701.38,0.00013698,2]
[335721497,1724463046789,-1000.0,0.00013698,2]
[335721499,1724463046798,-776.59,0.00013698,2]
[335721501,1724463046807,-1162.95,0.00013698,2]
[335721503,1724463046817,-500.0,0.00013698,2]
[335721505,1724463046826,-1367.59,0.00013698,2]
[335721507,1724463046835,-1302.97,0.00013698,2]
[335721509,1724463046845,-500.0,0.00013698,2]
[335721511,1724463046854,-634.52,0.00013698,2]
[335721513,1724463046864,-500.0,0.00013698,2]
[335721515,1724463046873,-500.0,0.00013698,2]
[335721517,1724463046883,-500.0,0.00013698,2]
[335721520,1724463046892,-500.0,0.00013698,2]
[335721522,1724463046901,-500.0,0.00013698,2]
[335721524,1724463046912,-500.0,0.00013698,2]
[335721526,1724463046922,-500.0,0.00013698,2]
[335721528,1724463046931,-921.33,0.00013698,2]
[335721530,1724463046940,-500.0,0.00013698,2]
[335721532,1724463046949,-615.78,0.00013698,2]
[335721534,1724463046959,-500.73801096,0.00013698,2]
[335721536,1724463046969,-500.0,0.00013698,2]
[335721538,1724463046978,-500.0,0.00013698,2]
[335721540,1724463046988,-900.29,0.00013698,2]
[335721542,1724463046997,-500.0,0.00013698,2]
[335721544,1724463047006,-1990.45,0.00013698,2]
[335721546,1724463047015,-500.0,0.00013698,2]
[335721548,1724463047024,-500.0,0.00013698,2]
[335721550,1724463047033,-500.0,0.00013698,2]
[335721552,1724463047042,-500.0,0.00013698,2]
[335721554,1724463047051,-736.92,0.00013698,2]
[335721556,1724463047061,-13324.41,0.00013698,2]
[335721558,1724463047070,-500.0,0.00013698,2]
[335721560,1724463047079,-2624.16,0.00013698,2]
[335721562,1724463047089,-575.16,0.00013698,2]
[335721564,1724463047098,-222.0712542,0.00013698,2]
[335721566,1724463047107,-500.0,0.00013698,2]
[335721568,1724463047116,-500.0,0.00013698,2]
[335721570,1724463047126,-500.0,0.00013698,2]
[335721572,1724463047135,-740.35,0.00013698,2]
[335721574,1724463047144,-10312.48,0.00013698,2]
[335721576,1724463047153,-508.49725446,0.00013698,2]
[335721578,1724463047163,-1060.12,0.00013698,2]
[335721580,1724463047172,-1060.12,0.00013698,2]
[335721582,1724463047181,-6587.44,0.00013698,2]
[335721584,1724463047191,-1060.12,0.00013698,2]
[335721586,1724463047201,-1060.12,0.00013698,2]
[335721588,1724463047210,-1060.12,0.00013698,2]
[335721590,1724463047219,-1060.12,0.00013698,2]
[335721592,1724463047229,-1060.12,0.00013698,2]
[335721594,1724463047242,-720.18,0.00013698,2]
[335721596,1724463047251,-1060.12,0.00013698,2]
[335721598,1724463047261,-1060.12,0.00013698,2]
[335721600,1724463047271,-1060.12,0.00013698,2]
[335721602,1724463047282,-1060.12,0.00013698,2]
[335721604,1724463047291,-500.0,0.00013698,2]
[335721606,1724463047301,-1060.12,0.00013698,2]
[335721608,1724463047311,-1060.12,0.00013698,2]
[335721610,1724463047323,-627.64,0.00013698,2]
[335721612,1724463047332,-500.0,0.00013698,2]
[335721614,1724463047340,-1060.12,0.00013698,2]
[335721616,1724463047349,-1060.12,0.00013698,2]
[335721618,1724463047358,-500.0,0.00013698,2]
[335721620,1724463047367,-500.0,0.00013698,2]
[335721622,1724463047377,-500.0,0.00013698,2]
[335721624,1724463047386,-2286.6,0.00013698,2]
[335721626,1724463047396,-1471.17,0.00013698,2]
[335721628,1724463047405,-718.74,0.00013698,2]
[335721630,1724463047414,-500.0,0.00013698,2]
[335721632,1724463047423,-500.0,0.00013698,2]
[335721634,1724463047433,-500.0,0.00013698,2]
[335721636,1724463047442,-506.04598366,0.00013698,2]
[335721638,1724463047451,-500.0,0.00013698,2]
[335721640,1724463047460,-500.0,0.00013698,2]
[335721642,1724463047470,-500.0,0.00013698,2]
[335721644,1724463047480,-500.0,0.00013698,2]
[335721646,1724463047489,-1260.9,0.00013698,2]
[335721648,1724463047499,-500.0,0.00013698,2]
[335721650,1724463047508,-500.0,0.00013698,2]
[335721652,1724463047517,-389.40762411,0.00013698,2]
[335721654,1724463047526,-500.0,0.00013698,2]
[335721655,1724463047535,-720.74,0.00013698,2]
[335721656,1724463047544,-500.0,0.00013698,2]
[335721658,1724463047553,-500.0,0.00013698,2]
[335721660,1724463047562,-1769.05,0.00013698,2]
[335721662,1724463047580,-752.78,0.00013698,2]
[335721664,1724463047589,-500.0,0.00013698,2]
[335721666,1724463047598,-980.84,0.00013698,2]
[335721668,1724463047607,-1285.82,0.00013698,2]
[335721670,1724463047617,-500.0,0.00013698,2]
[335721672,1724463047626,-3027.47,0.00013698,2]
[335721673,1724463047636,-2789.27,0.00013698,2]
[335721675,1724463047645,-2943.97,0.00013698,2]
[335721677,1724463047654,-500.0,0.00013698,2]
[335721679,1724463047663,-500.0,0.00013698,2]
[335721681,1724463047672,-519.03104898,0.00013698,2]
[335721683,1724463047681,-500.0,0.00013698,2]
[335721685,1724463047690,-500.0,0.00013698,2]
[335721687,1724463047699,-626.88,0.00013698,2]
[335721689,1724463047709,-14674.21,0.00013698,2]
[335721691,1724463047718,-725.53,0.00013698,2]
[335721693,1724463047727,-500.0,0.00013698,2]
[335721695,1724463047737,-779.44,0.00013698,2]
[335721697,1724463047746,-621.89,0.00013698,2]
[335721699,1724463047755,-500.0,0.00013698,2]
[335721701,1724463047764,-792.19,0.00013698,2]
[335721717,1724463047914,-2168.66,0.00013698,2]
[335721719,1724463047924,-4841.43,0.00013698,2]
[335721721,1724463047933,-500.0,0.00013698,2]
[335721723,1724463047943,-500.0,0.00013698,2]
[335721725,1724463047953,-500.0,0.00013698,2]
[335721727,1724463047962,-500.0,0.00013698,2]
[335721729,1724463047971,-500.0,0.00013698,2]
[335721730,1724463047981,-500.0,0.00013698,2]
[335721731,1724463047990,-500.0,0.00013698,2]
[335721732,1724463048001,-7046.81,0.00013698,2]
[335721734,1724463048011,-500.0,0.00013698,2]
[335721736,1724463048020,-502.53864449,0.00013698,2]
[335721737,1724463048029,-500.0,0.00013698,2]
[335721739,1724463048039,-4803.34,0.00013698,2]
[335721740,1724463048049,-1705.15,0.00013698,2]
[335721741,1724463048058,-1782.14,0.00013698,2]
[335721742,1724463048073,-2316.36,0.00013698,2]
[335721743,1724463048086,-1275.9,0.00013698,2]
[335721744,1724463048095,-500.0,0.00013698,2]
[335721745,1724463048105,-3809.28,0.00013698,2]
[335721746,1724463048115,-693.36,0.00013698,2]
[335721747,1724463048125,-500.0,0.00013698,2]
[335721748,1724463048135,-2269.59,0.00013698,2]
[335721749,1724463048145,-735.46,0.00013698,2]
[335721750,1724463048155,-500.0,0.00013698,2]
[335721751,1724463048165,-500.0,0.00013698,2]
[335721752,1724463048174,-500.0,0.00013698,2]
[335721753,1724463048184,-152.05856622,0.00013698,2]
[335721754,1724463048195,-500.0,0.00013698,2]
[335721755,1724463048204,-1555.53,0.00013698,2]
[335721756,1724463048215,-500.0,0.00013698,2]
[335721757,1724463048225,-898.82,0.00013698,2]
[335721758,1724463048239,-500.0,0.00013698,2]
[335721759,1724463048248,-534.63057297,0.00013698,2]
[335721760,1724463048258,-1021.36,0.00013698,2]
[335721761,1724463048268,-500.0,0.00013698,2]
[335721762,1724463048278,-500.0,0.00013698,2]
[335721763,1724463048289,-500.0,0.00013698,2]
[335721764,1724463048299,-631.8,0.00013698,2]
[335721765,1724463048310,-500.0,0.00013698,2]
[335721766,1724463048320,-1457.5163,0.00013698,2]
[335721767,1724463048330,-981.08,0.00013698,2]
[335721768,1724463048340,-500.0,0.00013698,2]
[335721769,1724463048350,-532.33252305,0.00013698,2]
[335721770,1724463048360,-12541.52,0.00013698,2]
[335721771,1724463048369,-1008.99,0.00013698,2]
[335721772,1724463048379,-1457.5163,0.00013698,2]
[335721773,1724463048389,-500.0,0.00013698,2]
[335721774,1724463048399,-500.0,0.00013698,2]
[335721775,1724463048408,-3571.72,0.00013698,2]
[335721776,1724463048419,-630.17,0.00013698,2]
[335721777,1724463048429,-501.47667113,0.00013698,2]
[335721778,1724463048438,-806.92,0.00013698,2]
[335721779,1724463048447,-500.0,0.00013698,2]
[335721780,1724463048456,-500.0,0.00013698,2]
[335721781,1724463048466,-151.0,0.00013699,2]
[335721782,1724463048477,-151.0,0.00013699,2]
[335721783,1724463048487,-151.0,0.00013699,2]
[335721784,1724463048497,-151.0,0.00013699,2]
[335721785,1724463048508,-151.0,0.00013699,2]
[335721786,1724463048519,-151.0,0.00013699,2]
[335721787,1724463048528,-692.727266,0.00013699,2]
[335721788,1724463048538,-692.727266,0.00013699,2]
[335721789,1724463048548,-973.28527,0.00013699,2]
[335721790,1724463048558,-151.0,0.00013699,2]
[335721791,1724463048569,-973.28527,0.00013699,2]
[335721792,1724463048580,-314.094658,0.00013699,2]
[335721793,1724463048589,-314.094658,0.00013699,2]
[335721794,1724463048599,-151.0,0.00013699,2]
[335721795,1724463048609,-151.0,0.00013699,2]
[335721796,1724463048619,-220.157913,0.00013699,2]
[335721797,1724463048628,-220.157913,0.00013699,2]
[335721798,1724463048638,-2670.413823,0.00013699,2]
[335721799,1724463048647,-2670.413823,0.00013699,2]
[335721800,1724463048658,-402.855315,0.00013699,2]
[335721801,1724463048667,-1455.457399,0.00013699,2]
[335721802,1724463048677,-402.855315,0.00013699,2]
[335721803,1724463048687,-1455.457399,0.00013699,2]
[335721804,1724463048696,-151.0,0.00013699,2]
[335721805,1724463048706,-151.0,0.00013699,2]
[335721806,1724463048716,-151.0,0.00013699,2]
[335721807,1724463048726,-4080.546842,0.00013699,2]
[335721808,1724463048736,-151.0,0.00013699,2]
[335721809,1724463048746,-4080.546842,0.00013699,2]
[335721810,1724463048756,-859.625733,0.00013699,2]
[335721811,1724463048765,-859.625733,0.00013699,2]
[335721812,1724463048775,-572.379286,0.00013699,2]
[335721813,1724463048784,-261.209216,0.00013699,2]
[335721814,1724463048794,-572.379286,0.00013699,2]
[335721815,1724463048804,-261.209216,0.00013699,2]
[335721816,1724463048813,-151.0,0.00013699,2]
[335721817,1724463048826,-497.875745,0.00013699,2]
[335721818,1724463048835,-211.671025,0.00013699,2]
[335721819,1724463048846,-211.671025,0.00013699,2]
[335721820,1724463048857,-497.875745,0.00013699,2]
[335721821,1724463048866,-3000.0,0.00013699,2]
[335721822,1724463048876,-329.331335,0.00013699,2]
[335721823,1724463048886,-329.331335,0.00013699,2]
[335721824,1724463048896,-151.0,0.00013699,2]
[335721825,1724463048906,-151.0,0.00013699,2]
[335721826,1724463048915,-225.635312,0.00013699,2]
[335721827,1724463048925,-225.635312,0.00013699,2]
[335721828,1724463048935,-1780.114268,0.00013699,2]
[335721829,1724463048944,-1780.114268,0.00013699,2]
[335721830,1724463048953,-2134.705053,0.00013699,2]
[335721831,1724463048963,-2134.705053,0.00013699,2]
[335721832,1724463048973,-384.314001,0.00013699,2]
[335721833,1724463048982,-384.314001,0.00013699,2]
[335721834,1724463048992,-4828.180092,0.00013699,2]
[335721835,1724463049001,-4828.180092,0.00013699,2]
[335721836,1724463049011,-240.678103,0.00013699,2]
[335721837,1724463049020,-240.678103,0.00013699,2]
[335721838,1724463049029,-434.644024,0.00013699,2]
[335721839,1724463049038,-434.644024,0.00013699,2]
[335721840,1724463049048,-151.0,0.00013699,2]
[335721841,1724463049057,-151.0,0.00013699,2]
[335721842,1724463049066,-2503.485416,0.00013699,2]
[335721843,1724463049075,-197.097485,0.00013699,2]
[335721844,1724463049084,-197.097485,0.00013699,2]
[335721845,1724463049094,-151.0,0.00013699,2]
[335721846,1724463049103,-1287.905095,0.00013699,2]
[335721847,1724463049113,-1287.905095,0.00013699,2]
[335721848,1724463049122,-296.87412,0.00013699,2]
[335721849,1724463049131,-296.87412,0.00013699,2]
[335721850,1724463049141,-1040.786388,0.00013699,2]
[335721851,1724463049151,-1040.786388,0.00013699,2]
[335721852,1724463049160,-688.64048414,0.00013699,2]
[335721853,1724463049170,-688.64048414,0.00013699,2]
[335721854,1724463049179,-688.64048414,0.00013699,2]
[335721855,1724463049189,-688.64048414,0.00013699,2]
[335721856,1724463049198,-688.64048414,0.00013699,2]
[335721857,1724463049208,-688.64048414,0.00013699,2]
[335721858,1724463049217,-688.64048414,0.00013699,2]
[335721859,1724463049227,-688.64048414,0.00013699,2]
[335721860,1724463049243,-688.64048414,0.00013699,2]
[335721861,1724463049254,-688.64048414,0.00013699,2]
[335721862,1724463049263,-688.64048414,0.00013699,2]
[335721863,1724463049273,-688.64048414,0.00013699,2]
[335721864,1724463049283,-688.64048414,0.00013699,2]
[335721865,1724463049292,-688.64048414,0.00013699,2]
[335721866,1724463049302,-688.64048414,0.00013699,2]
[335721867,1724463049313,-688.64048414,0.00013699,2]
[335721868,1724463049326,-688.64048414,0.00013699,2]
[335721869,1724463049336,-688.64048414,0.00013699,2]
[335721870,1724463049346,-688.64048414,0.00013699,2]
[335721871,1724463049356,-688.64048414,0.00013699,2]
[335721872,1724463049366,-688.64048414,0.00013699,2]
[335721873,1724463049376,-688.64048414,0.00013699,2]
[335721874,1724463049385,-688.64048414,0.00013699,2]
[335721875,1724463049394,-688.64048414,0.00013699,2]
[335721876,1724463049405,-688.64048414,0.00013699,2]
[335721877,1724463049416,-688.64048414,0.00013699,2]
[335721878,1724463049427,-688.64048414,0.00013699,2]
[335721879,1724463049437,-688.64048414,0.00013699,2]
[335721880,1724463049447,-688.64048414,0.00013699,2]
[335721881,1724463049457,-688.64048414,0.00013699,2]
[335721882,1724463049467,-688.64048414,0.00013699,2]
[335721883,1724463049477,-688.64048414,0.00013699,2]
[335721884,1724463049487,-688.64048402,0.00013699,2]
[335721885,1724463049496,-194.89692396,0.00013699,2]
[335721886,1724463049506,-1780.114268,0.00013699,2]
[335721887,1724463049516,-1780.114268,0.00013699,2]
[335721888,1724463049525,-2134.705053,0.00013699,2]
[335721889,1724463049535,-2134.705053,0.00013699,2]
[335721890,1724463049545,-384.314001,0.00013699,2]
[335721891,1724463049554,-384.314001,0.00013699,2]
[335721892,1724463049564,-4828.180092,0.00013699,2]
[335721893,1724463049574,-4828.180092,0.00013699,2]
[335721894,1724463049584,-434.644024,0.00013699,2]
[335721895,1724463049594,-434.644024,0.00013699,2]
[335721896,1724463049603,-197.097485,0.00013699,2]
[335721897,1724463049613,-197.097485,0.00013699,2]
[335721898,1724463049622,-1287.905095,0.00013699,2]
[335721899,1724463049631,-1287.905095,0.00013699,2]
[335721900,1724463049641,-296.87412,0.00013699,2]
[335721901,1724463049651,-296.87412,0.00013699,2]
[335721902,1724463049662,-1457.5163,0.00013699,2]
[335721903,1724463049671,-1457.5163,0.00013699,2]
[335721904,1724463049681,-150.112233,0.000137,2]
[335721905,1724463049690,-150.112233,0.000137,2]
[335721906,1724463049699,-150.112233,0.000137,2]
[335721907,1724463049709,-1000.0,0.00013701,2]
[335721908,1724463049719,-1000.0,0.00013726,2]
[335721909,1724463049728,-500.0,0.00013727,2]
[335721910,1724463049737,-1000.0,0.0001373,2]
[335721911,1724463049746,-1000.0,0.0001376,2]
[335721912,1724463049755,-452.63918642,0.00013765,2]
[335721913,1724463049765,-1000.0,0.00013769,2]
[335721914,1724463049774,-1054.68,0.00013771,2]
[335721915,1724463049783,-705.72,0.00013771,2]
[335721916,1724463049792,-11890.70478032,0.00013772,2]
[335721917,1724463049801,-1000.0,0.00013774,2]
[335721918,1724463049811,-150.112233,0.000138,2]
[335721919,1724463049820,-150.112233,0.000138,2]
[335721920,1724463049829,-150.112233,0.000138,2]
[335721921,1724463049839,-150.112233,0.000138,2]
[335721922,1724463049849,-150.112233,0.000138,2]
[335721923,1724463049859,-150.112233,0.000138,2]
[335721924,1724463049870,-484.18986078,0.00013801,2]
[335721925,1724463049879,-1000.0,0.00013816,2]
[335721926,1724463049888,-1000.0,0.00013851,2]
[335721927,1724463049897,-258.51478194,0.00013876,2]
[335721928,1724463049907,-5624.56460202,0.00013885,2]
[335721929,1724463049916,-151.95554166,0.00013889,2]
[335721930,1724463049925,-153.0,0.000139,2]
[335721931,1724463049934,-153.0,0.000139,2]
[335721932,1724463049944,-153.0,0.000139,2]
[335721933,1724463049953,-153.0,0.000139,2]
[335721934,1724463049963,-150.112233,0.000139,2]
[335721935,1724463049972,-150.112233,0.000139,2]
[335721936,1724463049981,-150.112233,0.000139,2]
[335721937,1724463049991,-150.112233,0.000139,2]
[335721938,1724463050000,-150.112233,0.000139,2]
[335721939,1724463050010,-150.112233,0.000139,2]
[335721940,1724463050020,-150.112233,0.000139,2]
[335721941,1724463050031,-150.112233,0.000139,2]
[335721942,1724463050042,-150.112233,0.000139,2]
[335721943,1724463050053,-173.505293,0.000139,2]
[335721944,1724463050064,-1000.0,0.00013909,2]
[335721945,1724463050074,-1000.0,0.00013934,2]
[335721946,1724463050084,-151.0,0.00013936,2]
[335721947,1724463050095,-1000.0,0.00013939,2]
[335721948,1724463050105,-300.0,0.0001395,2]
[335721949,1724463050116,-1000.0,0.00013959,2]
[335721950,1724463050126,-156.26,0.0001397,2]